bitfinex/quotes_BTCUSD_20250526
["timestamp","ask_amount","ask_price","bid_price","bid_amount"]
[1748264923053,0.53572055,109750.0,109740.0,0.04690192]
[1748264923231,0.53672055,109750.0,109740.0,0.04690192]
[1748264923457,1.0336748,109750.0,109740.0,0.04690192]
[1748264923669,1.0346748,109750.0,109740.0,0.04690192]
[1748264923872,0.53772055,109750.0,109740.0,0.01580192]
[1748264924703,0.53772055,109750.0,109740.0,0.04780192]
[1748264926611,0.53772055,109750.0,109740.0,0.01580192]
[1748264926612,0.9799548,109750.0,109740.0,0.01580192]
[1748264927918,1.1256748,109750.0,109740.0,0.01580192]
[1748264928094,1.1257148,109750.0,109740.0,0.01580192]
[1748264928272,0.79136123,109740.0,109730.0,0.3991499]
[1748264928484,0.88090679,109740.0,109730.0,0.39964776]
[1748264929324,0.88190679,109740.0,109730.0,0.40809569]
[1748264930092,1.02762679,109740.0,109730.0,0.40809569]
[1748264930295,1.02862679,109740.0,109730.0,0.40809569]
[1748264931448,0.58290679,109740.0,109730.0,0.98612352]
[1748264931649,0.58290679,109740.0,109730.0,0.89660201]
[1748264931855,0.502095,109740.0,109730.0,0.89660201]
[1748264932032,0.647815,109740.0,109730.0,0.89660201]
[1748264932411,0.502095,109740.0,109730.0,0.89660201]
[1748264932849,0.647815,109740.0,109730.0,0.91351632]
[1748264933083,0.63908123,109740.0,109730.0,1.00303783]
[1748264933291,0.63912123,109740.0,109730.0,1.00303783]
[1748264933560,0.49340123,109740.0,109730.0,0.50608358]
[1748264933777,0.63912123,109740.0,109730.0,0.92198104]
[1748264935915,0.81966679,109740.0,109730.0,0.42502679]
[1748264936121,0.81966679,109740.0,109730.0,0.92198104]
[1748264936330,0.84525226,109740.0,109730.0,0.92198104]
[1748264936877,0.85398549,109740.0,109730.0,0.42502679]
[1748264937990,0.73740002,109740.0,109730.0,0.09057689]
[1748264938235,0.73740002,109740.0,109730.0,0.09285491]
[1748264938644,0.73740002,109740.0,109730.0,0.09057689]
[1748264939065,0.73740002,109740.0,109730.0,0.09285491]
[1748264939878,0.7437862,109740.0,109730.0,0.09285491]
[1748264940089,0.7437862,109740.0,109730.0,0.06540238]
[1748264940293,0.7437862,109740.0,109730.0,0.05985491]
[1748264940650,0.7437862,109740.0,109730.0,0.0429406]
[1748264941487,0.5980662,109740.0,109730.0,0.0429406]
[1748264941696,0.8347862,109740.0,109730.0,0.53989485]
[1748264941898,0.8347862,109740.0,109730.0,0.53761683]
[1748264942099,2.6660575,109740.0,109730.0,0.00896258]
[1748264942326,2.52126853,109740.0,109730.0,0.00896258]
[1748264942550,2.71316238,109740.0,109730.0,0.00896258]
[1748264942766,2.70316238,109740.0,109730.0,0.00896258]
[1748264942971,2.70216238,109740.0,109730.0,0.00896258]
[1748264943174,2.7156556,109740.0,109730.0,0.00896258]
[1748264944251,2.56695305,109740.0,109730.0,0.00049786]
[1748264944602,2.26895305,109740.0,109730.0,0.00049786]
[1748264944805,2.57195305,109740.0,109730.0,0.00049786]
[1748264945014,1.57804455,109740.0,109730.0,0.00049786]
[1748264945187,2.57195305,109740.0,109730.0,0.00049786]
[1748264946029,2.62195305,109740.0,109730.0,0.00049786]
[1748264947687,2.65259594,109740.0,109730.0,0.00049786]
[1748264948396,2.65259594,109740.0,109720.0,0.002]
[1748264948397,0.20056463,109690.0,109680.0,0.4031]
[1748264948600,0.43732463,109690.0,109680.0,0.4032493]
[1748264949453,0.34632463,109690.0,109680.0,0.0632493]
[1748264949651,0.34732463,109690.0,109680.0,0.41174856]
[1748264949860,0.34732463,109690.0,109680.0,0.38174856]
[1748264950038,0.29111019,109690.0,109680.0,0.35064856]
[1748264950246,0.52787019,109690.0,109680.0,0.35064856]
[1748264950468,0.52887019,109690.0,109680.0,0.35064856]
[1748264950631,0.52887019,109690.0,109680.0,0.38234856]
[1748264953791,0.52891019,109690.0,109680.0,0.38234856]
[1748264954001,0.5916765,109690.0,109680.0,0.38234856]
[1748264954728,0.4458765,109690.0,109680.0,0.38234856]
[1748264955087,0.5916765,109690.0,109680.0,0.38234856]
[1748264955300,0.5916765,109690.0,109680.0,0.91210281]
[1748264956934,0.4458765,109690.0,109680.0,0.91210281]
[1748264957132,0.5916765,109690.0,109680.0,0.91210281]
[1748264957356,0.35633094,109690.0,109680.0,1.00162432]
[1748264957566,0.50213094,109690.0,109680.0,0.91210281]
[1748264958288,0.80213094,109690.0,109680.0,0.91210281]
[1748264958446,1.10213094,109690.0,109680.0,1.40905706]
[1748264958648,0.95633094,109690.0,109680.0,2.41388006]
[1748264958855,0.95633094,109690.0,109680.0,2.49751092]
[1748264959067,1.10213094,109690.0,109680.0,2.41388006]
[1748264959267,1.10213094,109690.0,109680.0,0.81305956]
[1748264959453,1.10213094,109690.0,109680.0,1.7244298]
[1748264959854,0.95633094,109690.0,109680.0,1.7244298]
[1748264960062,1.10213094,109690.0,109680.0,1.7244298]
[1748264960497,1.03936463,109690.0,109680.0,1.7244298]
[1748264960808,0.59356463,109690.0,109680.0,1.78967366]
[1748264961007,0.59356463,109690.0,109680.0,1.94455366]
[1748264961367,0.73936463,109690.0,109680.0,1.94455366]
[1748264961562,0.59356463,109690.0,109680.0,2.03409922]
[1748264961771,0.73936463,109690.0,109680.0,2.03409922]
[1748264962422,0.59356463,109690.0,109680.0,2.21644787]
[1748264962625,0.58444845,109690.0,109680.0,2.04321665]
[1748264962839,0.19344845,109690.0,109680.0,2.23468256]
[1748264963043,0.20256463,109690.0,109680.0,2.24379966]
[1748264963456,0.20256463,109690.0,109680.0,2.24379974]
[1748264963941,0.02023261,109690.0,109680.0,2.24379974]
[1748264964161,0.02023211,109690.0,109680.0,2.26203369]
[1748264964359,0.03846488,109690.0,109680.0,2.26203369]
[1748264964562,0.2207969,109690.0,109680.0,2.26203385]
[1748264964899,0.20256479,109690.0,109680.0,2.24379974]
[1748264965358,0.19344853,109690.0,109680.0,2.2255653]
[1748264965558,0.19344853,109690.0,109680.0,2.0706853]
[1748264965759,0.19344853,109690.0,109680.0,2.2255653]
[1748264966674,0.19344853,109690.0,109680.0,2.0706853]
[1748264966881,0.19344853,109690.0,109680.0,2.23468248]
[1748264967391,0.19344853,109690.0,109680.0,2.23468264]
[1748264968633,0.19344853,109690.0,109680.0,2.26203264]
[1748264968836,0.19344853,109690.0,109680.0,2.55443264]
[1748264969031,0.20256479,109690.0,109680.0,3.069621]
[1748264969245,0.20256479,109690.0,109680.0,3.06050407]
[1748264969457,0.01111601,109690.0,109680.0,2.78905292]
[1748264969658,0.21168064,109690.0,109680.0,2.63262312]
[1748264969828,0.21168064,109690.0,109680.0,2.64174013]
[1748264970226,0.21168064,109690.0,109680.0,2.64173963]
[1748264972624,0.21168064,109690.0,109680.0,2.67463963]
[1748264973274,0.22079715,109690.0,109680.0,2.67463963]
[1748264973791,0.22079715,109690.0,109680.0,2.67463914]
[1748264973997,0.18429878,109710.0,109700.0,0.07874085]
[1748264974206,0.28429878,109710.0,109700.0,5.53294973]
[1748264974405,0.33005878,109710.0,109700.0,6.41861293]
[1748264974682,0.18429878,109710.0,109700.0,5.24642893]
[1748264974858,0.18429878,109710.0,109700.0,5.00730293]
[1748264975430,0.18429878,109710.0,109700.0,5.18961833]
[1748264975796,0.18529878,109710.0,109700.0,5.25168849]
[1748264976826,0.18529878,109710.0,109700.0,5.02789249]
[1748264977539,0.18629878,109710.0,109700.0,5.03189249]
[1748264980180,0.18629878,109710.0,109700.0,5.21420789]
[1748264981804,0.18629878,109710.0,109700.0,4.22029939]
[1748264982016,0.18629878,109710.0,109700.0,5.21420789]
[1748264982237,0.18629878,109710.0,109700.0,5.22332366]
[1748264982677,0.18629878,109710.0,109700.0,5.23243926]
[1748264982901,0.18629878,109710.0,109700.0,5.22332366]
[1748264984529,0.18629878,109710.0,109700.0,5.23243934]
[1748264984742,0.18629878,109710.0,109700.0,5.24155477]
[1748264985193,0.18629878,109710.0,109700.0,5.08671477]
[1748264985414,0.20452848,109710.0,109700.0,5.24191477]
[1748264986666,0.20452848,109710.0,109700.0,5.53431477]
[1748264987123,0.213643,109710.0,109700.0,5.53431477]
[1748264989763,0.213643,109710.0,109700.0,5.52519934]
[1748264990165,0.213643,109710.0,109700.0,5.53431494]
[1748264992614,0.20452848,109710.0,109700.0,5.53431494]
[1748264995989,0.19541371,109710.0,109700.0,5.32465249]
[1748264996132,0.19541371,109710.0,109700.0,5.29335249]
[1748264996715,0.19541371,109710.0,109700.0,5.47566789]
[1748264996897,0.19541371,109710.0,109700.0,5.29335249]
[1748264997098,0.19541371,109710.0,109700.0,5.32495249]
[1748265004382,0.19541371,109710.0,109700.0,5.29335249]
[1748265006316,0.19541371,109710.0,109700.0,5.13815249]
[1748265006538,0.55571371,109710.0,109700.0,0.2964]
[1748265006744,1.00147371,109710.0,109700.0,0.79335425]
[1748265006959,0.85571371,109710.0,109700.0,0.79335425]
[1748265007361,1.00147371,109710.0,109700.0,1.13335425]
[1748265009595,0.85571371,109710.0,109700.0,1.13335425]
[1748265009797,1.00147371,109710.0,109700.0,1.22287576]
[1748265010354,1.00147371,109710.0,109700.0,0.93047576]
[1748265011189,1.00147371,109710.0,109700.0,0.72454384]
[1748265012097,1.00147371,109710.0,109700.0,0.58647576]
[1748265012835,1.00147371,109710.0,109700.0,0.85264576]
[1748265012836,0.70147371,109710.0,109700.0,0.85264576]
[1748265013398,0.64117371,109710.0,109700.0,0.85264576]
[1748265013625,0.64117371,109710.0,109700.0,0.86718661]
[1748265014005,0.49541371,109710.0,109700.0,1.45368642]
[1748265014412,0.01311469,109710.0,109700.0,2.0552331]
[1748265014645,0.42808761,109720.0,109710.0,0.35454085]
[1748265014840,0.42808761,109720.0,109710.0,5.13258292]
[1748265015090,0.1,109720.0,109710.0,6.80574445]
[1748265015288,0.03645492,109720.0,109710.0,6.39713384]
[1748265015496,0.01822713,109720.0,109710.0,6.39713384]
[1748265015722,0.02734098,109720.0,109710.0,6.39713384]
[1748265015941,0.27532246,109730.0,109720.0,0.56179627]
[1748265015942,0.42108246,109730.0,109720.0,0.56179627]
[1748265016146,0.42108246,109730.0,109720.0,5.77419734]
[1748265016354,0.27532246,109730.0,109720.0,6.19174059]
[1748265016761,0.27532246,109730.0,109720.0,6.21787419]
[1748265016943,0.27532246,109730.0,109720.0,6.0173639]
[1748265017196,0.93965813,109730.0,109720.0,0.61803619]
[1748265017426,0.93965813,109730.0,109720.0,0.35701958]
[1748265017639,0.63965813,109730.0,109720.0,0.35701958]
[1748265017843,0.63965813,109730.0,109720.0,0.01701958]
[1748265018048,0.64065813,109730.0,109720.0,0.01901958]
[1748265018313,0.54965813,109730.0,109720.0,0.36101958]
[1748265018518,0.54965813,109730.0,109720.0,0.85797383]
[1748265020361,0.24965813,109730.0,109720.0,0.85797383]
[1748265020771,0.24965813,109730.0,109720.0,0.36101958]
[1748265021814,0.43020369,109730.0,109720.0,0.36101958]
[1748265023501,0.43020369,109730.0,109720.0,0.02101958]
[1748265025012,0.43020369,109730.0,109720.0,0.02329784]
[1748265026733,0.57596369,109730.0,109720.0,0.52025209]
[1748265026875,0.57596369,109730.0,109720.0,0.51797383]
[1748265027292,0.57596369,109730.0,109720.0,0.02101958]
[1748265027529,0.63890851,109730.0,109720.0,0.02329784]
[1748265028298,0.63890851,109730.0,109720.0,0.02101958]
[1748265030644,0.54790851,109730.0,109720.0,0.02101958]
[1748265032245,1.04486276,109730.0,109720.0,0.02101958]
[1748265032891,1.14225033,109730.0,109720.0,0.02101958]
[1748265033297,1.15097224,109730.0,109720.0,0.004]
[1748265033984,1.25097224,109730.0,109720.0,0.004]
[1748265034686,1.25097224,109730.0,109720.0,0.002]
[1748265034899,0.26382807,109710.0,109700.0,0.83695425]
[1748265035106,0.40958807,109710.0,109700.0,0.83695425]
[1748265035315,0.40958807,109710.0,109700.0,0.85398032]
[1748265035943,0.40958807,109710.0,109700.0,0.35702607]
[1748265036173,0.40958807,109710.0,109700.0,0.85398032]
[1748265036997,0.41058807,109710.0,109700.0,0.85698032]
[1748265037415,0.41058807,109710.0,109700.0,0.94267835]
[1748265037826,0.41158807,109710.0,109700.0,0.94567835]
[1748265039355,0.64828807,109710.0,109700.0,0.94567835]
[1748265040549,0.50252807,109710.0,109700.0,0.94567835]
[1748265040766,0.20252807,109710.0,109700.0,2.320296]
[1748265041017,0.33917355,109710.0,109700.0,2.15252145]
[1748265042221,0.19341355,109710.0,109700.0,2.24206701]
[1748265042428,0.33737355,109710.0,109700.0,2.24206701]
[1748265043193,0.19161355,109710.0,109700.0,2.24206701]
[1748265043824,0.19161355,109710.0,109700.0,2.42438241]
[1748265044905,0.19161355,109710.0,109700.0,2.24206701]
[1748265046444,0.19161355,109710.0,109700.0,2.42438241]
[1748265046646,0.19161355,109710.0,109700.0,2.45172913]
[1748265047429,0.19161355,109710.0,109700.0,2.44261378]
[1748265047643,0.19161355,109710.0,109700.0,2.4517293]
[1748265047849,0.01842929,109710.0,109700.0,2.46995991]
[1748265048176,0.209843,109710.0,109700.0,2.46996008]
[1748265049315,0.02934356,109710.0,109700.0,2.61571949]
[1748265049682,0.03845841,109710.0,109700.0,2.61571949]
[1748265049880,0.02934356,109710.0,109700.0,2.61571949]
[1748265050313,0.03845841,109710.0,109700.0,2.61571949]
[1748265050510,0.02022871,109710.0,109700.0,2.61571949]
[1748265050718,0.038458,109710.0,109700.0,2.61571949]
[1748265052286,0.002,109710.0,109700.0,2.61571949]
[1748265052513,0.00911352,109720.0,109710.0,0.54964258]
[1748265052743,0.00911352,109720.0,109710.0,6.99579815]
[1748265052953,0.37145482,109730.0,109720.0,0.63006417]
[1748265052954,0.04337162,109730.0,109720.0,0.63006417]
[1748265053167,0.04337162,109730.0,109720.0,6.7805443]
[1748265053381,0.19140123,109740.0,109730.0,1.53982802]
[1748265053627,0.25550123,109740.0,109730.0,0.34]
[1748265053844,0.55550123,109740.0,109730.0,0.85398032]
[1748265055301,0.55550123,109740.0,109730.0,0.85498032]
[1748265055413,0.55550123,109740.0,109730.0,0.92300193]
[1748265056562,0.55550123,109740.0,109730.0,0.92400193]
[1748265062192,0.70122123,109740.0,109730.0,0.92400193]
[1748265062401,1.00122123,109740.0,109730.0,0.92400193]
[1748265068140,0.70122123,109740.0,109730.0,0.92400193]
[1748265068340,1.00122123,109740.0,109730.0,0.92400193]
[1748265071194,1.00122123,109740.0,109730.0,0.85598032]
[1748265073979,0.66942123,109740.0,109730.0,2.72447632]
[1748265074217,0.36942123,109740.0,109730.0,2.72447632]
[1748265074343,0.22370123,109740.0,109730.0,2.65680632]
[1748265074584,0.66942123,109740.0,109730.0,2.45884632]
[1748265074790,0.66942123,109740.0,109730.0,2.54836783]
[1748265075002,0.70162123,109740.0,109730.0,1.71951583]
[1748265075610,0.70162123,109740.0,109730.0,1.67882483]
[1748265075874,0.70162123,109740.0,109730.0,1.65500283]
[1748265076025,0.70162123,109740.0,109730.0,1.43568083]
[1748265076787,0.70162123,109740.0,109730.0,1.24185483]
[1748265078183,1.00162123,109740.0,109730.0,1.20045583]
[1748265078803,1.00162123,109740.0,109730.0,1.11093432]
[1748265079095,4e-05,109740.0,109730.0,1.82647498]
[1748265079315,0.21712224,109770.0,109750.0,0.07904085]
[1748265079531,0.44826189,109770.0,109760.0,3.05401139]
[1748265079740,0.34875967,109770.0,109760.0,3.06876032]
[1748265079945,0.34875967,109770.0,109760.0,3.17866472]
[1748265080160,0.20303967,109770.0,109760.0,3.19965427]
[1748265080386,0.34875967,109770.0,109760.0,3.35557427]
[1748265080600,0.34875967,109770.0,109760.0,3.39638472]
[1748265080808,0.34875967,109770.0,109760.0,3.19594783]
[1748265080956,0.33964997,109770.0,109760.0,3.21308401]
[1748265081167,0.20047447,109780.0,109770.0,0.0273291]
[1748265081377,0.00924453,109780.0,109770.0,4.56823795]
[1748265081599,0.21875386,109780.0,109770.0,4.56228305]
[1748265081815,0.20053669,109780.0,109770.0,4.31921605]
[1748265082026,0.20053669,109780.0,109770.0,4.33624212]
[1748265082237,0.0183539,109780.0,109770.0,4.35446103]
[1748265082449,0.12036404,109790.0,109780.0,0.61160915]
[1748265082669,0.31163828,109790.0,109780.0,2.86649678]
[1748265082871,0.29342245,109790.0,109780.0,2.87441398]
[1748265083084,0.28431424,109790.0,109780.0,2.68312232]
[1748265083296,0.28431424,109790.0,109780.0,2.8125495]
[1748265083506,0.28431424,109790.0,109780.0,2.82165862]
[1748265083713,0.28431424,109790.0,109780.0,2.8125495]
[1748265083936,0.28431424,109790.0,109780.0,2.63036696]
[1748265084146,0.04176044,109800.0,109790.0,0.23611493]
[1748265084343,0.04176044,109800.0,109790.0,5.97268624]
[1748265084560,0.05086732,109800.0,109790.0,5.97268624]
[1748265084765,0.37719595,109810.0,109800.0,0.3703]
[1748265084979,0.46808965,109810.0,109800.0,3.43177513]
[1748265085232,0.46808965,109810.0,109800.0,0.85671258]
[1748265085440,0.76808965,109810.0,109800.0,1.14075183]
[1748265086429,0.62240965,109810.0,109800.0,1.14075183]
[1748265086645,0.76808965,109810.0,109800.0,1.14075183]
[1748265087490,0.62440965,109810.0,109800.0,1.14075183]
[1748265087692,0.77008965,109810.0,109800.0,1.14075183]
[1748265087890,0.62640965,109810.0,109800.0,1.14075183]
[1748265088124,0.77208965,109810.0,109800.0,1.14075183]
[1748265090323,0.53338965,109810.0,109800.0,0.01702607]
[1748265090528,1.11988946,109810.0,109800.0,0.01702607]
[1748265090996,0.26168196,109790.0,109780.0,0.01354664]
[1748265091263,0.40732196,109790.0,109780.0,0.01354664]
[1748265091560,0.7912915,109780.0,109770.0,0.49695425]
[1748265091790,0.4912915,109780.0,109770.0,2.29908488]
[1748265092026,0.4912915,109780.0,109770.0,2.08685194]
[1748265092262,0.4912915,109780.0,109770.0,1.74685194]
[1748265092500,0.5412915,109780.0,109770.0,1.76071538]
[1748265092717,0.5412915,109780.0,109770.0,2.10071538]
[1748265092870,0.6869315,109780.0,109770.0,2.10071538]
[1748265093098,0.6869315,109780.0,109770.0,1.76071538]
[1748265093498,0.6869315,109780.0,109770.0,2.10071538]
[1748265093721,0.6879315,109780.0,109770.0,2.10371538]
[1748265094072,0.6879315,109780.0,109770.0,2.10671538]
[1748265094981,0.6879315,109780.0,109770.0,2.60366963]
[1748265096325,0.3879315,109780.0,109770.0,2.60366963]
[1748265096732,0.3879315,109780.0,109770.0,2.52350513]
[1748265099440,0.3879315,109780.0,109770.0,1.52959663]
[1748265099654,0.3879315,109780.0,109770.0,1.51978426]
[1748265100330,0.39704037,109780.0,109770.0,2.01673851]
[1748265100538,0.39704037,109780.0,109770.0,1.94017061]
[1748265100938,0.39704037,109780.0,109770.0,1.82815715]
[1748265101155,0.39704037,109780.0,109770.0,1.64595801]
[1748265101619,0.39704037,109780.0,109770.0,1.65972901]
[1748265102746,0.25140037,109780.0,109770.0,1.84192815]
[1748265102973,0.3879715,109780.0,109770.0,1.84192815]
[1748265104582,0.3879715,109780.0,109770.0,1.65972901]
[1748265106957,0.3879715,109780.0,109770.0,1.16277476]
[1748265107188,0.4512715,109780.0,109770.0,1.65972901]
[1748265107717,0.4197715,109780.0,109770.0,1.65972901]
[1748265108759,0.4197715,109780.0,109770.0,1.5304536]
[1748265109056,0.4197715,109780.0,109770.0,1.69548701]
[1748265109496,0.4514715,109780.0,109770.0,1.57608601]
[1748265109924,0.4514715,109780.0,109770.0,1.35130211]
[1748265110820,0.2740915,109780.0,109770.0,1.35130211]
[1748265111003,0.4197715,109780.0,109770.0,1.35130211]
[1748265111215,0.4197715,109780.0,109770.0,1.36478534]
[1748265113872,0.4197715,109780.0,109770.0,0.51043748]
[1748265113873,0.7499715,109780.0,109770.0,0.51043748]
[1748265114090,0.7499715,109780.0,109770.0,0.64685048]
[1748265119414,0.7499715,109780.0,109770.0,0.62271348]
[1748265120479,1.0499715,109780.0,109770.0,0.62271348]
[1748265120697,1.0499715,109780.0,109770.0,0.96271348]
[1748265121394,1.0499715,109780.0,109770.0,0.95253748]
[1748265122186,1.0499715,109780.0,109770.0,1.04205899]
[1748265125572,1.0499715,109780.0,109770.0,0.95253748]
[1748265126427,1.0499715,109780.0,109770.0,0.85043748]
[1748265127014,1.0499715,109780.0,109770.0,0.66011231]
[1748265127954,1.0499715,109780.0,109770.0,0.35348323]
[1748265128175,0.19130893,109770.0,109760.0,0.51350311]
[1748265128381,0.19130893,109770.0,109760.0,1.07366532]
[1748265129027,0.19130893,109770.0,109760.0,1.16318683]
[1748265129417,0.19230893,109770.0,109760.0,1.180712]
[1748265129745,0.19330893,109770.0,109760.0,1.184712]
[1748265130267,0.19330893,109770.0,109760.0,1.524712]
[1748265131437,0.19330893,109770.0,109760.0,1.43519049]
[1748265135926,0.25790893,109770.0,109760.0,1.40720649]
[1748265136778,0.22600893,109770.0,109760.0,1.40720649]
[1748265139653,0.25840893,109770.0,109760.0,1.40720649]
[1748265140042,0.40408893,109770.0,109760.0,1.40720649]
[1748265140786,0.40408893,109770.0,109760.0,0.36366124]
[1748265141416,0.70408893,109770.0,109760.0,0.36366124]
[1748265141613,0.55840893,109770.0,109760.0,0.86061549]
[1748265141855,0.49330893,109770.0,109760.0,1.803463]
[1748265142057,0.63898893,109770.0,109760.0,1.833963]
[1748265142268,0.63898893,109770.0,109760.0,1.803463]
[1748265143219,0.49330893,109770.0,109760.0,1.803463]
[1748265143421,0.63898893,109770.0,109760.0,1.835763]
[1748265143836,0.63898893,109770.0,109760.0,1.803463]
[1748265144008,0.63898893,109770.0,109760.0,1.82052341]
[1748265147059,0.63898893,109770.0,109760.0,1.6426979]
[1748265147276,0.70368893,109770.0,109760.0,0.87952365]
[1748265147452,0.70368893,109770.0,109760.0,0.85220265]
[1748265147917,1.00368893,109770.0,109760.0,0.04072165]
[1748265148163,1.50064318,109770.0,109760.0,0.02719648]
[1748265148380,0.882756,109770.0,109760.0,0.02719648]
[1748265148804,0.79323449,109770.0,109760.0,0.02719648]
[1748265148994,0.79223449,109770.0,109760.0,0.02319648]
[1748265149161,0.79123449,109770.0,109760.0,0.01919648]
[1748265149604,0.79323449,109770.0,109760.0,0.02319648]
[1748265150266,0.79123449,109770.0,109760.0,0.01919648]
[1748265150490,0.79123449,109770.0,109760.0,0.02019648]
[1748265150719,0.79123449,109770.0,109760.0,0.02119648]
[1748265152463,0.880756,109770.0,109760.0,0.02119648]
[1748265154262,0.880756,109770.0,109760.0,0.0211647]
[1748265154754,0.79123449,109770.0,109760.0,0.0211647]
[1748265156009,0.79123449,109770.0,109760.0,0.0201647]
[1748265156429,0.79223449,109770.0,109760.0,0.0191647]
[1748265156787,0.79323449,109770.0,109760.0,0.0191647]
[1748265158211,0.55612636,109760.0,109750.0,0.27487687]
[1748265159397,0.55612636,109760.0,109750.0,0.27587687]
[1748265159834,0.55612636,109760.0,109750.0,0.27687687]
[1748265160530,0.60612636,109760.0,109750.0,0.27687687]
[1748265161537,0.69564787,109760.0,109750.0,0.27687687]
[1748265162576,0.60612636,109760.0,109750.0,0.29022244]
[1748265163204,0.60612636,109760.0,109750.0,0.01534557]
[1748265163425,1.19262617,109760.0,109750.0,0.002]
[1748265167607,1.1990027,109760.0,109750.0,0.002]
[1748265168222,1.1990027,109760.0,109750.0,0.001]
[1748265168438,1.2000027,109760.0,109750.0,0.001]
[1748265168834,0.55524379,109750.0,109740.0,0.002]
[1748265169037,1.2874636,109750.0,109740.0,0.002]
[1748265169549,0.79050935,109750.0,109740.0,0.002]
[1748265170125,0.79050935,109750.0,109740.0,0.004]
[1748265172531,1.2874636,109750.0,109740.0,0.004]
[1748265172734,1.37698511,109750.0,109740.0,0.004]
[1748265172876,1.53142511,109750.0,109740.0,0.004]
[1748265173323,0.19139611,109720.0,109710.0,0.51204201]
[1748265173526,0.19139611,109720.0,109710.0,2.16648101]
[1748265173902,0.19139611,109720.0,109710.0,1.57174525]
[1748265174037,0.19139611,109720.0,109710.0,1.00324425]
[1748265174242,0.19139611,109720.0,109710.0,0.50629]
[1748265174445,0.19139611,109720.0,109710.0,1.00324425]
[1748265174698,0.19139611,109720.0,109710.0,1.01741801]
[1748265174904,0.19139611,109720.0,109710.0,0.9930761]
[1748265175258,0.19239611,109720.0,109710.0,0.9829551]
[1748265175462,0.19339611,109720.0,109710.0,0.9879551]
[1748265175667,0.19239611,109720.0,109710.0,0.9829551]
[1748265175861,0.19139611,109720.0,109710.0,0.9779551]
[1748265176085,0.19339611,109720.0,109710.0,0.9819551]
[1748265176563,0.52439611,109720.0,109710.0,0.9819551]
[1748265177215,0.49339611,109720.0,109710.0,0.9819551]
[1748265180589,0.49339611,109720.0,109710.0,1.47890935]
[1748265180797,0.33911611,109720.0,109710.0,1.63283086]
[1748265182055,0.33911611,109720.0,109710.0,1.54330935]
[1748265182668,0.38911611,109720.0,109710.0,1.54330935]
[1748265186598,0.38911611,109720.0,109710.0,1.20330935]
[1748265186750,0.24339611,109720.0,109710.0,1.20330935]
[1748265186957,0.38911611,109720.0,109710.0,1.38560813]
[1748265187157,0.25250996,109720.0,109710.0,1.47512964]
[1748265187369,0.38911611,109720.0,109710.0,1.29283086]
[1748265190580,0.38911611,109720.0,109710.0,1.48424449]
[1748265191175,0.38911611,109720.0,109710.0,1.49335926]
[1748265191380,0.38911611,109720.0,109710.0,1.50247395]
[1748265191600,0.38911611,109720.0,109710.0,1.29283086]
[1748265192390,0.38911611,109720.0,109710.0,1.47512964]
[1748265194477,0.38911611,109720.0,109710.0,1.29283086]
[1748265195238,0.38911611,109720.0,109710.0,1.56843086]
[1748265202086,0.45361611,109720.0,109710.0,1.570389]
[1748265202285,0.42241611,109720.0,109710.0,1.570389]
[1748265202732,0.45451611,109720.0,109710.0,1.570389]
[1748265203471,0.42241611,109720.0,109710.0,1.570389]
[1748265203750,0.38911611,109720.0,109710.0,1.570389]
[1748265205962,0.38911611,109720.0,109710.0,1.58493786]
[1748265208563,0.41981611,109720.0,109710.0,1.58493786]
[1748265210847,0.38911611,109720.0,109710.0,1.58493786]
[1748265215062,0.38911611,109720.0,109710.0,1.57126188]
[1748265215267,0.38911611,109720.0,109710.0,1.92926184]
[1748265216697,0.38911611,109720.0,109710.0,1.86676184]
[1748265216902,0.38911611,109720.0,109710.0,1.88383046]
[1748265217619,0.38911611,109720.0,109710.0,1.94633046]
[1748265218011,0.24339611,109720.0,109710.0,1.94633046]
[1748265218208,0.24339611,109720.0,109710.0,1.95544515]
[1748265218417,0.24339611,109720.0,109710.0,1.89294515]
[1748265220066,0.23428217,109720.0,109710.0,1.88383046]
[1748265220598,0.23428217,109720.0,109710.0,1.87471569]
[1748265220736,0.23428217,109720.0,109710.0,1.69241691]
[1748265220938,0.26738217,109720.0,109710.0,1.69241691]
[1748265221283,0.26738217,109720.0,109710.0,1.88383062]
[1748265221483,0.23428217,109720.0,109710.0,1.69241691]
[1748265221663,0.26668217,109720.0,109710.0,1.69241691]
[1748265222383,0.23428217,109720.0,109710.0,1.87471569]
[1748265222607,0.23428217,109720.0,109710.0,1.69241691]
[1748265223477,0.23428217,109720.0,109710.0,1.88383062]
[1748265224623,0.23428217,109720.0,109710.0,1.89294547]
[1748265225657,0.26458217,109720.0,109710.0,1.52150966]
[1748265225859,0.26458217,109720.0,109710.0,1.70380844]
[1748265226135,0.26458217,109720.0,109710.0,4.75746544]
[1748265226316,0.26458217,109720.0,109710.0,4.59074337]
[1748265226516,0.26458217,109720.0,109710.0,4.57619451]
[1748265228247,0.26458217,109720.0,109710.0,4.58990312]
[1748265228499,0.26458217,109720.0,109710.0,4.36781012]
[1748265229924,0.23428217,109720.0,109710.0,4.37692497]
[1748265230211,0.23428217,109720.0,109710.0,4.38784915]
[1748265230612,0.23428217,109720.0,109710.0,4.3787343]
[1748265233300,0.23428217,109720.0,109710.0,4.36781012]
[1748265234185,0.23428217,109720.0,109710.0,4.18551134]
[1748265234393,0.23428217,109720.0,109710.0,4.36781012]
[1748265235093,0.26488217,109720.0,109710.0,4.36781012]
[1748265235948,0.26488217,109720.0,109710.0,4.38235898]
[1748265236362,0.29788217,109720.0,109710.0,4.38235898]
[1748265238373,0.26488217,109720.0,109710.0,4.38235898]
[1748265239836,0.29768217,109720.0,109710.0,3.92553227]
[1748265240052,0.29768217,109720.0,109710.0,3.91045727]
[1748265240253,0.29768217,109720.0,109710.0,4.09275605]
[1748265240449,0.29768217,109720.0,109710.0,4.10187098]
[1748265240666,0.29768217,109720.0,109710.0,3.91045727]
[1748265241317,0.29768217,109720.0,109710.0,4.09275605]
[1748265242709,0.29768217,109720.0,109710.0,3.91045727]
[1748265242939,0.29768217,109720.0,109710.0,0.78674109]
[1748265243185,0.29768217,109720.0,109710.0,1.21349241]
[1748265243409,0.29768217,109720.0,109710.0,1.02466541]
[1748265243747,0.29768217,109720.0,109710.0,0.88325941]
[1748265243988,0.29768217,109720.0,109710.0,1.05042432]
[1748265244181,0.29768217,109720.0,109710.0,1.06134991]
[1748265245361,0.29668217,109720.0,109710.0,1.04680105]
[1748265245575,0.29768217,109720.0,109710.0,0.90448305]
[1748265245783,0.29768217,109720.0,109710.0,1.10147405]
[1748265246201,0.29668217,109720.0,109710.0,1.10147405]
[1748265246590,0.29668217,109720.0,109710.0,1.97531407]
[1748265246749,0.23328217,109720.0,109710.0,1.98442884]
[1748265246980,0.38911619,109720.0,109710.0,1.98542884]
[1748265247363,0.38911619,109720.0,109710.0,1.985429]
[1748265247524,0.38911619,109720.0,109710.0,1.99454385]
[1748265247990,0.38911619,109720.0,109710.0,2.00345586]
[1748265248233,0.38911619,109720.0,109710.0,2.00707913]
[1748265248610,0.24339619,109720.0,109710.0,2.00707913]
[1748265248813,0.38911619,109720.0,109710.0,2.00707913]
[1748265249036,0.38911619,109720.0,109710.0,1.99796444]